fUST/lending_fUST_20240208
["ID","MTS","AMOUNT","RATE_DAILY","PERIOD"]
[313460201,1707357039408,-153.0,0.00028493,2]
[313460202,1707357039418,-280.0,0.00028685,15]
[313460203,1707357039428,-454.79243383,0.0002869,2]
[313460204,1707357039437,-235.47043779,0.00028788,2]
[313460205,1707357039446,-479.84674693,0.00028788,2]
[313460206,1707357039456,-500.0,0.00028788,2]
[313460207,1707357039465,-500.0,0.00028788,2]
[313460208,1707357039474,-232.00422812,0.00028788,2]
[313460209,1707357039484,-270.6775118,0.00028788,2]
[313460210,1707357039493,-592.39024017,0.00028788,2]
[313460211,1707357039502,-393.11238634,0.00028788,2]
[313460212,1707357039512,-466.08782316,0.00028788,2]
[313460213,1707357039521,-500.0,0.00028788,2]
[313460214,1707357039531,-510.89370596,0.00028788,2]
[313460215,1707357039540,-650.0,0.00028788,2]
[313460216,1707357039550,-417.10678255,0.00028788,2]
[313460217,1707357039561,-278.55828097,0.00028788,2]
[313460218,1707357039570,-500.0,0.00028788,2]
[313460219,1707357039580,-500.0,0.00028788,2]
[313460220,1707357039590,-500.0,0.00028788,2]
[313460221,1707357039599,-500.0,0.00028788,2]
[313460222,1707357039609,-515.21031646,0.00028788,2]
[313460223,1707357039618,-500.0,0.00028788,2]
[313460224,1707357039627,-500.0,0.00028788,2]
[313460225,1707357039636,-500.0,0.00028788,2]
[313460226,1707357039646,-500.0,0.00028788,2]
[313460227,1707357039656,-500.0,0.00028788,2]
[313460228,1707357039669,-500.0,0.00028788,2]
[313460229,1707357039678,-231.88379326,0.00028789,2]
[313460230,1707357039687,-1129.85208544,0.00028789,20]
[313460231,1707357039697,-46111.02664638,0.00028789,2]
[313460232,1707357039707,-720.44348,0.00028789,2]
[313460233,1707357039717,-720.44348,0.00028789,2]
[313460234,1707357039727,-8199.81,0.0002879,2]
[313460235,1707357039738,-8199.81,0.0002879,2]
[313460236,1707357039750,-8206.38,0.0002879,2]
[313460237,1707357039759,-8206.38,0.0002879,2]
[313460238,1707357039769,-8206.38,0.0002879,2]
[313460239,1707357039779,-8206.38,0.0002879,2]
[313460240,1707357039790,-8206.37,0.0002879,2]
[313460241,1707357039885,-151.0,0.0002879,2]
[313460242,1707357039898,-720.44348,0.0002879,2]
[313460243,1707357039908,-720.44348,0.0002879,2]
[313460244,1707357039917,-103264.47179983,0.00028791,2]
[313460245,1707357039927,-151.0,0.00028791,2]
[313460246,1707357039936,-720.44348,0.00028791,2]
[313460247,1707357039946,-720.44348,0.00028791,2]
[313460248,1707357039955,-459.60686937,0.00029,3]
[313460249,1707357039964,-183.31759979,0.00029,10]
[313460250,1707357039973,-17357.21480602,0.00029,2]
[313460259,1707357041813,-1263.33437611,0.000237,2]
[313460260,1707357041822,-21509.15023062,0.00029,2]
[313460407,1707358231805,-155.10391963,0.00018423,3]
[313460408,1707358231817,-442.80803417,0.00018424,2]
[313460431,1707358237928,-378.06031312,0.00018424,2]
[313460432,1707358237938,-1891.4964011,0.00018425,2]
[313460433,1707358237949,-1250.62684353,0.00018425,2]
[313460436,1707358238041,-21757.87675537,0.00018425,2]
[313460437,1707358238050,-155.10391963,0.00018518,2]
[313460438,1707358238059,-275.5315404,0.00018521,2]
[313460439,1707358238070,-8896.020063,0.00018862,2]
[313460440,1707358238079,-249.9822341,0.00018974,2]
[313460441,1707358238088,-168.480407,0.00019178,2]
[313460442,1707358238098,-680.94052688,0.0002,2]
[313460443,1707358238107,-1201.92575629,0.0002,2]
[313460444,1707358238117,-1441.62098607,0.00020325,2]
[313460445,1707358238126,-397.30837306,0.00020325,2]
[313460446,1707358238135,-295.17418127,0.00020325,2]
[313460447,1707358238144,-1040.13101467,0.00020325,2]
[313460449,1707358238153,-2724.21624822,0.00020325,5]
[313460450,1707358238162,-249.45842908,0.00020325,2]
[313460451,1707358238171,-277.28055839,0.00020325,2]
[313460452,1707358238180,-160.74459677,0.00020325,2]
[313460453,1707358238189,-187.36427635,0.00020325,2]
[313460454,1707358238198,-592.31414107,0.00020325,2]
[313460455,1707358238208,-259.7400818,0.00020325,2]
[313460456,1707358238216,-169.98582935,0.00020325,2]
[313460457,1707358238226,-346.60725304,0.00020325,2]
[313460458,1707358238235,-3839.46735469,0.00020325,2]
[313460459,1707358238244,-295.48420738,0.00020325,2]
[313460460,1707358238253,-312.54594727,0.00020325,2]
[313460461,1707358238261,-1162.86551399,0.00020325,2]
[313460462,1707358238270,-2116.50255421,0.00020325,2]
[313460463,1707358238280,-293.21741442,0.00020325,2]
[313460464,1707358238289,-179.9058112,0.00020325,2]
[313460465,1707358238298,-500.0,0.00020325,2]
[313460466,1707358238307,-223.21728794,0.00020325,2]
[313460467,1707358238316,-744.43127892,0.00020325,2]
[313460468,1707358238325,-2229.33800025,0.00020325,2]
[313460469,1707358238334,-377.30604758,0.00020325,2]
[313460470,1707358238342,-456.17781433,0.00020325,2]
[313460471,1707358238351,-262.69298917,0.00020325,2]
[313460472,1707358238360,-1811.52380848,0.00020325,2]
[313460473,1707358238369,-397.43836811,0.00020326,2]
[313460474,1707358238378,-174.3972896,0.00020327,2]
[313460475,1707358238387,-200.0,0.00020748,2]
[313460476,1707358238396,-13882.36574231,0.00021,2]
[313460477,1707358238406,-9302.99266813,0.00021,2]
[313460478,1707358238415,-166.666666,0.00021918,2]
[313460479,1707358238424,-2545.98774058,0.00022,2]
[313460480,1707358238433,-427.31508471,0.00022,2]
[313460481,1707358238442,-166.666666,0.00022431,2]
[313460482,1707358238451,-280.0,0.00022822,7]
[313460483,1707358238460,-183.22740969,0.000229,2]
[313460484,1707358238469,-166.666666,0.00022944,2]
[313460485,1707358238478,-9969.58754808,0.00023,2]
[313460486,1707358238487,-1263.33437611,0.00023,2]
[313460487,1707358238497,-166.666666,0.00023456,2]
[313460488,1707358238506,-166.666666,0.00023969,2]
[313460489,1707358238515,-4015.1493001,0.00024,2]
[313460490,1707358238524,-166.666666,0.00024482,2]
[313460491,1707358238533,-426.99310613,0.00025,2]
[313460492,1707358238543,-2296.70683753,0.00025,2]
[313460493,1707358238552,-6300.94053929,0.00025,2]
[313460494,1707358238561,-4101.95611379,0.00025,2]
[313460495,1707358238570,-391.0,0.00025105,7]
[313460496,1707358238579,-5628.97,0.00026478,3]
[313460497,1707358238588,-6754.77,0.00026488,3]
[313460498,1707358238597,-5000.0,0.00026498,2]
[313460499,1707358238606,-10675.70955749,0.00026498,2]
[313460500,1707358238615,-500.0,0.000265,2]
[313460501,1707358238624,-5000.0,0.00026524,2]
[313460502,1707358238633,-43619.34888278,0.00026524,2]
[313460503,1707358238642,-49534.17181749,0.00026524,2]
[313460504,1707358238652,-18398.5948385,0.00026542,2]
[313460505,1707358238662,-203.13453816,0.00026607,2]
[313460506,1707358238671,-231.88379326,0.00026608,2]
[313460507,1707358238681,-1159.16651583,0.00026691,2]
[313460508,1707358238690,-500.0,0.00026798,2]
[313460509,1707358238699,-500.0,0.00026798,2]
[313460510,1707358238708,-232.00422812,0.00026798,2]
[313460511,1707358238718,-393.11238634,0.00026798,2]
[313460512,1707358238727,-270.6775118,0.00026798,2]
[313460513,1707358238736,-592.39024017,0.00026798,2]
[313460514,1707358238746,-466.08782316,0.00026798,2]
[313460515,1707358238756,-479.84674693,0.00026798,2]
[313460516,1707358238764,-510.89370596,0.00026798,2]
[313460517,1707358238773,-500.0,0.00026798,2]
[313460518,1707358238782,-500.0,0.00026798,2]
[313460519,1707358238791,-500.0,0.00026798,2]
[313460520,1707358238800,-500.0,0.00026798,2]
[313460521,1707358238808,-500.0,0.00026798,2]
[313460522,1707358238817,-500.0,0.00026798,2]
[313460523,1707358238827,-500.0,0.00026798,2]
[313460524,1707358238836,-500.0,0.00026798,2]
[313460525,1707358238845,-500.0,0.00026798,2]
[313460526,1707358238854,-500.0,0.00026798,2]
[313460527,1707358238863,-515.21031646,0.00026798,2]
[313460528,1707358238871,-500.0,0.00026798,2]
[313460529,1707358238881,-500.0,0.00026798,2]
[313460530,1707358238889,-500.0,0.00026798,2]
[313460531,1707358238898,-500.0,0.00026798,2]
[313460532,1707358238907,-500.0,0.00026798,2]
[313460533,1707358238916,-500.0,0.00026798,2]
[313460534,1707358238925,-500.0,0.00026798,2]
[313460535,1707358238933,-500.0,0.00026798,2]
[313460536,1707358238942,-500.0,0.00026798,2]
[313460537,1707358238951,-500.0,0.00026798,2]
[313460538,1707358238961,-500.0,0.00026798,2]
[313460539,1707358238969,-500.0,0.00026798,2]
[313460540,1707358238980,-500.0,0.00026798,2]
[313460541,1707358238992,-500.0,0.00026798,2]
[313460542,1707358239001,-569.60048956,0.00026798,2]
[313460543,1707358239010,-500.0,0.00026798,2]
[313460544,1707358239019,-500.0,0.00026798,2]
[313460545,1707358239029,-500.0,0.00026798,2]
[313460546,1707358239038,-333.53693705,0.00026798,2]
[313460547,1707358239047,-500.0,0.00026798,2]
[313460548,1707358239056,-500.0,0.00026798,2]
[313460549,1707358239065,-500.0,0.00026798,2]
[313460550,1707358239075,-500.0,0.00026798,2]
[313460551,1707358239085,-500.0,0.00026798,2]
[313460552,1707358239093,-500.0,0.00026798,2]
[313460553,1707358239103,-500.0,0.00026798,2]
[313460554,1707358239112,-500.0,0.00026798,2]
[313460555,1707358239121,-500.0,0.00026798,2]
[313460556,1707358239130,-500.0,0.00026798,2]
[313460557,1707358239140,-500.0,0.00026798,2]
[313460558,1707358239150,-500.0,0.00026798,2]
[313460559,1707358239159,-500.0,0.00026798,2]
[313460560,1707358239168,-500.0,0.00026798,2]
[313460561,1707358239177,-11026.69130554,0.000268,2]
[313460562,1707358239187,-1382.75585323,0.00027,2]
[313460563,1707358239196,-600.0,0.000275,2]
[313460564,1707358239206,-514.08551986,0.000275,2]
[313460565,1707358239215,-200.0,0.00027615,15]
[313460566,1707358239224,-348.0,0.00027615,15]
[313460567,1707358239233,-355.38,0.000278,2]
[313460568,1707358239242,-51334.35268178,0.000279,2]
[313460569,1707358239251,-454.79243383,0.000279,2]
[313460570,1707358239260,-1716.51144437,0.00028,2]
[313460571,1707358239269,-46111.02664638,0.00028,2]
[313460573,1707358239278,-1129.85208544,0.00028,20]
[313460574,1707358239287,-169.6134292,0.00028003,2]
[313460575,1707358239296,-160.51086893,0.0002828,2]
[313460576,1707358239305,-221.99202262,0.00028283,2]
[313460577,1707358239314,-3856.43342356,0.00028587,5]
[313460578,1707358239323,-8203.45,0.0002879,2]
[313460579,1707358239332,-8203.45,0.0002879,2]
[313460581,1707358239341,-8203.45,0.0002879,2]
[313460582,1707358239350,-8203.45,0.0002879,2]
[313460583,1707358239359,-8203.45,0.0002879,2]
[313460584,1707358239368,-8203.45,0.0002879,2]
[313460585,1707358239377,-8203.45,0.0002879,2]
[313460586,1707358239386,-8203.45,0.0002879,2]
[313460587,1707358239395,-151.0,0.0002879,2]
[313460588,1707358239404,-295.822165,0.0002879,2]
[313460589,1707358239414,-151.0,0.0002879,2]
[313460590,1707358239423,-151.0,0.0002879,2]
[313460591,1707358239432,-151.0,0.0002879,2]
[313460592,1707358239441,-211.981346,0.0002879,2]
[313460593,1707358239450,-211.981346,0.0002879,2]
[313460594,1707358239460,-151.0,0.0002879,2]
[313460595,1707358239469,-1849.808788,0.0002879,2]
[313460596,1707358239478,-1849.808788,0.0002879,2]
[313460597,1707358239488,-103363.61382579,0.00028791,2]
[313460598,1707358239497,-819.865414,0.00028791,2]
[313460599,1707358239507,-819.865414,0.00028791,2]
[313460600,1707358239516,-151.0,0.00028791,2]
[313460601,1707358239525,-151.0,0.00028791,2]
[313460602,1707358239534,-151.0,0.00028791,2]
[313460603,1707358239544,-288.060087,0.00028791,2]
[313460604,1707358239554,-211.981346,0.00028791,2]
[313460605,1707358239563,-211.981346,0.00028791,2]
[313460606,1707358239572,-151.0,0.00028791,2]
[313460607,1707358239581,-1849.808788,0.00028791,2]
[313460608,1707358239591,-1849.808788,0.00028791,2]
[313460609,1707358239601,-263.92988769,0.00028888,2]
[313460610,1707358239610,-151.0,0.00028899,2]
[313460611,1707358239619,-4333.96639434,0.00029,2]
[313460612,1707358239633,-432.85647337,0.00029,2]
[313460613,1707358239645,-3217.97610551,0.00029,2]
[313460614,1707358240977,-159.7962003,0.00019429,2]
[313460615,1707358240988,-417.10678255,0.00026798,2]
[313460616,1707358240999,-9455.0803828,0.00029,2]
[313460617,1707358241009,-911.30733562,0.00029,3]
[313460618,1707358241018,-155.11282233,0.00029,2]
[313460620,1707358241027,-459.69208989,0.00029,3]
[313460621,1707358241036,-409.49885311,0.00029,2]
[313460623,1707358241045,-155.07598723,0.00029,2]
[313460625,1707358241054,-300.0,0.00029,2]
[313460626,1707358241063,-183.35515758,0.00029,10]
[313460628,1707358241074,-1000.0,0.00029,7]
[313460630,1707358241083,-3253.88603195,0.00029,2]
[313460632,1707358241092,-5000.0,0.00029,6]
[313460634,1707358241101,-2235.919794,0.000294,2]
[313460636,1707358241110,-2000.0,0.000294,2]
[313460638,1707358241119,-2000.0,0.0002941,2]
[313460640,1707358241128,-2000.0,0.0002942,2]
[313460642,1707358241137,-2000.0,0.0002943,2]
[313460644,1707358241145,-2000.0,0.0002944,2]
[313460646,1707358241154,-2000.0,0.0002945,2]
[313460648,1707358241163,-2000.0,0.0002946,2]
[313460650,1707358241172,-206.01507121,0.0002947,2]
[313460653,1707358241181,-2000.0,0.0002947,2]
[313460655,1707358241190,-151.0,0.0002947,2]
[313460657,1707358241199,-151.0,0.0002947,2]
[313460659,1707358241208,-151.0,0.0002947,2]
[313460661,1707358241217,-469.80019319,0.00029472,2]
[313460663,1707358241226,-6580.00622313,0.00029472,2]
[313460747,1707358245951,-459.0,0.00029464,3]
[313460763,1707358724338,155.10236756,0.00018022,3]
[313460764,1707358740174,155.10236756,0.00016219,3]
[313460765,1707358762190,155.10236756,0.00016219,3]
[313460766,1707358780184,155.10236756,0.00016219,3]
[313460767,1707358804189,155.10236756,0.00016219,3]
[313460768,1707358822203,155.10236756,0.00016219,3]
[313460770,1707358840190,155.10236756,0.00016219,3]
[313460771,1707358860202,155.10236756,0.00016219,3]
[313460773,1707358876209,155.10236756,0.00016219,3]
[313460774,1707358892242,155.10236756,0.00016219,3]
[313460775,1707358910210,155.10236756,0.00016219,3]
[313460776,1707358930319,155.10236756,0.00016219,3]
[313460778,1707358950200,155.10081553,0.00016219,3]
[313460779,1707358957022,2724.21624822,0.00018021,5]
[313460780,1707358972206,155.09926353,0.00016219,3]
[313460781,1707358992218,155.09926353,0.00016219,3]
[313460782,1707359008214,155.09926353,0.00016219,3]
[313460784,1707359028215,155.09926353,0.00016219,3]
[313460786,1707359050226,155.09926353,0.00016219,3]
[313460788,1707359085610,414.181189,0.00016732,2]
[313460789,1707359092221,155.09926353,0.00016219,3]
[313460790,1707359097530,155.09926353,0.0001701,2]
[313460791,1707359108570,5000.0,0.0001701,2]
[313460792,1707359112137,454.37321419,0.0001701,2]
[313460793,1707359114054,155.09926353,0.0001701,2]
[313460794,1707359120051,261.88794378,0.0001701,2]
[313460795,1707359123835,203.23208,0.0003,120]
[313460797,1707359126450,7983.26892551,0.0001701,2]
[313460798,1707359130226,155.09926353,0.0001531,2]
[313460799,1707359132404,3000.0,0.00016798,2]
[313460800,1707359133760,20933.53573456,0.0001701,2]
[313460801,1707359134155,523.68160801,0.0001701,2]
[313460802,1707359138460,19922.00560303,0.0001701,2]
[313460803,1707359139547,175.72920133,0.0001701,2]
[313460804,1707359150252,155.09926353,0.0001531,2]
[313460805,1707359166270,155.09926353,0.00016219,3]
[313460806,1707359188236,155.09926353,0.00016219,3]
[313460813,1707359204335,155.09926353,0.00016219,3]
[313460814,1707359222240,155.09926353,0.00016219,3]
[313460818,1707359244268,155.09926353,0.00016219,3]
[313460819,1707359249249,1762.4773739,0.00016929,2]
[313460822,1707359262245,155.09926353,0.00016219,3]
[313460823,1707359278264,155.09926353,0.00016219,3]
[313460825,1707359300255,155.09926353,0.00017075,3]
[313460826,1707359320251,155.09926353,0.00017075,3]
[313460827,1707359340257,155.09926353,0.00017075,3]
[313460894,1707359358262,155.09926353,0.00017075,3]
[313460910,1707359370649,174.3972896,0.00016741,2]
[313460911,1707359380261,155.09926353,0.00017075,3]
[313460913,1707359402263,155.09926353,0.00017075,3]
[313460915,1707359422267,155.09926353,0.00017075,3]
[313460966,1707359432023,-820.86834729,0.00017011,2]
[313460968,1707359432034,-155.09926353,0.00017011,2]
[313460969,1707359432044,-455.96972701,0.00017011,2]
[313460971,1707359432054,-1512.55655092,0.00017011,2]
[313460972,1707359432064,-18958.53178657,0.00017011,2]
[313460974,1707359432073,-521.49319792,0.00017011,2]
[313460976,1707359432082,-244.79212612,0.00017012,2]
[313460978,1707359432090,-3000.35943606,0.00017012,2]
[313460980,1707359432100,-249.9822341,0.00017017,2]
[313460982,1707359432109,-8625.4203707,0.00017176,2]
[313460984,1707359432118,-473.79430853,0.0001748,2]
[313460986,1707359432128,-1997.39540013,0.00018012,2]
[313460988,1707359432137,-500.0,0.00018013,2]
[313460990,1707359432146,-293.21741442,0.00018013,2]
[313460992,1707359432154,-179.9058112,0.00018013,2]
[313460994,1707359432164,-203.13453816,0.00018021,2]
[313460996,1707359432172,-377.30604758,0.00018021,2]
[313460999,1707359432189,-2229.33800025,0.00018021,2]
[313461001,1707359432202,-223.21728794,0.00018021,2]
[313461003,1707359432211,-2116.50255421,0.00018021,2]
[313461005,1707359432221,-1162.86551399,0.00018021,2]
[313461007,1707359432231,-312.54594727,0.00018021,2]
[313461009,1707359432241,-295.48420738,0.00018021,2]
[313461011,1707359432250,-249.45842908,0.00018021,2]
[313461013,1707359432261,-3839.46735469,0.00018021,2]
[313461016,1707359432270,-592.31414107,0.00018021,2]
[313461018,1707359432280,-346.60725304,0.00018021,2]
[313461020,1707359432290,-277.28055839,0.00018021,2]
[313461022,1707359432299,-397.30837306,0.00018021,2]
[313461024,1707359432309,-1040.13101467,0.00018021,2]
[313461026,1707359432319,-187.36427635,0.00018021,2]
[313461028,1707359432329,-1441.62098607,0.00018021,2]
[313461030,1707359432339,-295.17418127,0.00018021,2]
[313461032,1707359432351,-169.98582935,0.00018021,2]
[313461034,1707359432360,-160.74459677,0.00018021,2]
[313461036,1707359432370,-155.40621461,0.00018021,2]
[313461038,1707359432379,-158.22238802,0.00018021,2]
[313461040,1707359432390,-642.7190219,0.00018021,2]
[313461042,1707359432399,-247.60791785,0.00018021,2]
[313461044,1707359432409,-226.36562978,0.00018021,2]
[313461046,1707359432418,-167.07364334,0.00018021,2]
[313461048,1707359432430,-1152.84686247,0.00018021,2]
[313461050,1707359432439,-157.68801362,0.00018021,2]
[313461052,1707359432448,-177.827444,0.00018021,2]
[313461054,1707359432458,-397.43836811,0.00018022,2]
[313461056,1707359432468,-7296.96572868,0.00018022,2]
[313461058,1707359432477,-200.0,0.00018711,2]
[313461060,1707359432486,-12552.109655,0.00018974,2]
[313461062,1707359432496,-24900.0,0.00018974,2]
[313461065,1707359432506,-181.66863048,0.00019078,2]
[313461067,1707359432515,-168.806383,0.00019178,2]
[313461069,1707359432524,-169.046918,0.00019178,2]
[313461071,1707359432534,-235.21023548,0.0002,2]
[313461073,1707359432543,-155.10236756,0.0002,2]
[313461075,1707359432552,-744.43127892,0.0002,2]
[313461077,1707359432562,-259.7400818,0.0002,2]
[313461079,1707359432572,-680.94052688,0.0002,2]
[313461081,1707359432581,-280.0,0.00020582,2]
[313461083,1707359432590,-166.666666,0.00021918,2]
[313461085,1707359432599,-3981.4674439,0.00022,2]
[313461087,1707359432609,-427.31508471,0.00022,2]
[313461089,1707359432618,-166.666666,0.00022431,2]
[313461091,1707359432628,-391.0,0.0002264,7]
[313461093,1707359432639,-166.666666,0.00022944,2]
[313461095,1707359432649,-1263.33437611,0.00023,2]
[313461097,1707359432658,-6968.85945167,0.00023,2]
[313461100,1707359432672,-3000.72809641,0.00023,2]
[313461102,1707359432681,-166.666666,0.00023456,2]
[313461104,1707359432691,-166.666666,0.00023969,2]
[313461106,1707359432700,-4015.1493001,0.00024,2]
[313461108,1707359432710,-166.666666,0.00024482,2]
[313461110,1707359432719,-200.0,0.00024904,7]
[313461112,1707359432728,-348.0,0.00024904,7]
[313461114,1707359432738,-7407.43141525,0.00025,2]
[313461116,1707359432747,-2952.43758445,0.00025,2]
[313461278,1707359438369,-3348.50295484,0.00025,2]
[313461280,1707359438378,-335.61069179,0.00025,2]
[313461282,1707359438387,-4101.95611379,0.00025,2]
[313461284,1707359438398,-1000.0,0.00025,2]
[313461286,1707359438407,-1000.0,0.00025,2]
[313461288,1707359438416,-414.181189,0.00025098,2]
[313461290,1707359438427,-554.73221669,0.0002628,2]
[313461292,1707359438437,-5000.0,0.00026554,2]
[313461294,1707359438447,-47828.20461185,0.00026554,2]
[313461296,1707359438457,-500.0,0.00026562,2]
[313461298,1707359438465,-500.0,0.00026562,2]
[313461300,1707359438474,-479.84674693,0.00026562,2]
[313461302,1707359438483,-592.39024017,0.00026562,2]
[313461304,1707359438492,-500.0,0.00026562,2]
[313461306,1707359438501,-270.6775118,0.00026562,2]
[313461308,1707359438510,-232.00422812,0.00026562,2]
[313461310,1707359438519,-466.08782316,0.00026562,2]
[313461312,1707359438529,-510.89370596,0.00026562,2]
[313461314,1707359438538,-500.0,0.00026562,2]
[313461316,1707359438548,-500.0,0.00026562,2]
[313461318,1707359438558,-500.0,0.00026562,2]
[313461320,1707359438567,-500.0,0.00026562,2]
[313461322,1707359438576,-500.0,0.00026562,2]
[313461324,1707359438585,-471.62554063,0.00026562,2]
[313461326,1707359438593,-500.0,0.00026562,2]
[313461328,1707359438602,-500.0,0.00026562,2]
[313461330,1707359438611,-500.0,0.00026562,2]
[313461332,1707359438620,-515.21031646,0.00026562,2]
[313461334,1707359438629,-500.0,0.00026562,2]
[313461336,1707359438638,-500.0,0.00026562,2]
[313461338,1707359438647,-500.0,0.00026562,2]
[313461340,1707359438656,-392.63936948,0.00026562,2]
[313461342,1707359438665,-500.0,0.00026562,2]
[313461344,1707359438674,-500.0,0.00026562,2]
[313461346,1707359438683,-500.0,0.00026562,2]
[313461348,1707359438692,-500.0,0.00026562,2]
[313461350,1707359438701,-500.0,0.00026562,2]
[313461352,1707359438710,-500.0,0.00026562,2]
[313461354,1707359438719,-500.0,0.00026562,2]
[313461356,1707359438728,-500.0,0.00026562,2]
[313461358,1707359438737,-500.0,0.00026562,2]
[313461360,1707359438746,-500.0,0.00026562,2]
[313461362,1707359438755,-500.0,0.00026562,2]
[313461364,1707359438764,-500.0,0.00026562,2]
[313461366,1707359438773,-500.0,0.00026562,2]
[313461368,1707359438782,-500.0,0.00026562,2]
[313461370,1707359438791,-500.0,0.00026562,2]
[313461372,1707359438800,-500.0,0.00026562,2]
[313461373,1707359438809,-500.0,0.00026562,2]
[313461375,1707359438818,-500.0,0.00026562,2]
[313461377,1707359438829,-500.0,0.00026562,2]
[313461380,1707359438839,-500.0,0.00026562,2]
[313461382,1707359438848,-500.0,0.00026562,2]
[313461384,1707359438857,-500.0,0.00026562,2]
[313461385,1707359438867,-500.0,0.00026562,2]
[313461387,1707359438876,-500.0,0.00026562,2]
[313461389,1707359438885,-500.0,0.00026562,2]
[313461391,1707359438895,-500.0,0.00026562,2]
[313461393,1707359438904,-437.20971493,0.00026562,2]
[313461396,1707359438915,-234.43699886,0.00026562,2]
[313461398,1707359438924,-500.0,0.00026562,2]
[313461400,1707359438933,-500.0,0.00026562,2]
[313461402,1707359438943,-500.0,0.00026562,2]
[313461404,1707359438952,-500.0,0.00026562,2]
[313461406,1707359438961,-500.0,0.00026562,2]
[313461407,1707359438971,-500.0,0.00026562,2]
[313461409,1707359438980,-500.0,0.00026562,2]
[313461411,1707359438990,-500.0,0.00026562,2]
[313461413,1707359438999,-500.0,0.00026562,2]
[313461415,1707359439008,-500.0,0.00026562,2]
[313461417,1707359439017,-500.0,0.00026562,2]
[313461419,1707359439026,-500.0,0.00026562,2]
[313461421,1707359439035,-500.0,0.00026562,2]
[313461423,1707359439045,-500.0,0.00026562,2]
[313461425,1707359439054,-500.0,0.00026562,2]
[313461427,1707359439063,-500.0,0.00026562,2]
[313461429,1707359439073,-500.0,0.00026562,2]
[313461431,1707359439082,-500.0,0.00026562,2]
[313461433,1707359439091,-500.0,0.00026562,2]
[313461435,1707359439100,-500.0,0.00026562,2]
[313461437,1707359439109,-500.0,0.00026562,2]
[313461439,1707359439118,-500.0,0.00026562,2]
[313461441,1707359439128,-500.0,0.00026562,2]
[313461443,1707359439137,-500.0,0.00026562,2]
[313461445,1707359439146,-68288.95625719,0.00026563,2]
[313461447,1707359439155,-2095.41525699,0.00026572,2]
[313461449,1707359439165,-5000.0,0.00026572,2]
[313461451,1707359439174,-16942.01646468,0.00026581,2]
[313461453,1707359439183,-2011.17317334,0.00026691,2]
[313461456,1707359439192,-355.38,0.000268,2]
[313461458,1707359439205,-1382.75585323,0.00027,2]
[313461459,1707359439215,-200.0,0.00027395,15]
[313461461,1707359439224,-200.0,0.00027395,15]
[313461463,1707359439234,-368.0,0.00027395,15]
[313461465,1707359439244,-991.3729726,0.00027397,2]
[313461467,1707359439254,-8615.04,0.00027397,3]
[313461470,1707359439263,-514.08551986,0.000275,2]
[313461472,1707359439276,-600.0,0.000275,2]
[313461474,1707359439288,-6554.67238682,0.00028,2]
[313461477,1707359439301,-1716.51144437,0.00028,2]
[313461479,1707359439313,-46111.02664638,0.00028,2]
[313461481,1707359439326,-1129.85208544,0.00028,20]
[313461483,1707359439336,-151.0,0.00028,2]
[313461486,1707359439347,-250.773996,0.00028,2]
[313461488,1707359439361,-250.773996,0.00028,2]
[313461490,1707359439372,-151.0,0.00028,2]
[313461492,1707359439384,-151.0,0.00028,2]
[313461494,1707359439395,-2102.274667,0.00028,2]
[313461497,1707359439407,-2102.274667,0.00028,2]
[313461499,1707359439420,-160.51086893,0.0002828,2]
[313461501,1707359439432,-454.79243383,0.00028707,2]
[313461503,1707359439443,-181.66863048,0.00028708,2]
[313461506,1707359439455,-5013.22,0.00028807,2]